bitfinex/quotes_SOLUSD_20220311
["timestamp","ask_amount","ask_price","bid_price","bid_amount"]
[1647006691704,0.001,82.575,82.522,4.33114642]
[1647006691908,0.001,82.575,82.532,5.02872237]
[1647006692105,0.001,82.575,82.535,120.8]
[1647006692506,0.001,82.575,82.54,138.9567]
[1647006692707,0.001,82.575,82.542,120.8]
[1647006692906,0.001,82.575,82.541,4.20649677]
[1647006693104,0.001,82.575,82.543,6.0]
[1647006693709,0.001,82.575,82.55,18.1545]
[1647006693912,0.001,82.575,82.551,59.50856298]
[1647006694506,0.001,82.575,82.552,126.8]
[1647006694707,0.001,82.575,82.552,6.0]
[1647006694911,18.7,82.578,82.552,6.0]
[1647006695307,18.7,82.578,82.56,18.1543]
[1647006695910,24.4034,82.638,82.56,18.1543]
[1647006696111,6.0,82.637,82.56,18.1543]
[1647006697511,6.0,82.637,82.56,36.12]
[1647006699612,6.0,82.637,82.56,156.92]
[1647006699817,6.0,82.637,82.56,36.12]
[1647006701117,6.0,82.637,82.56,156.92]
[1647006701515,6.0,82.637,82.561,6.0]
[1647006701714,24.4034,82.638,82.581,46.27526794]
[1647006702715,72.44,82.687,82.581,46.27526794]
[1647006702716,14.42,82.69,82.59,138.9469]
[1647006702920,1.6229242,82.705,82.593,145.8]
[1647006703115,47.398,82.723,82.603,120.8]
[1647006703317,47.398,82.723,82.605,120.8]
[1647006703519,47.398,82.723,82.621,174.29016681]
[1647006703822,47.398,82.723,82.631,120.8]
[1647006704016,47.398,82.723,82.65,18.1333]
[1647006704217,6.0,82.722,82.651,53.9925961]
[1647006704618,6.0,82.722,82.652,3.04447957]
[1647006705017,47.398,82.723,82.652,3.04447957]
[1647006705223,47.398,82.723,82.66,18.1319]
[1647006705419,47.398,82.723,82.661,6.0]
[1647006705618,24.124,82.748,82.661,6.0]
[1647006705818,6.0,82.747,82.661,9.04447957]
[1647006706017,6.0,82.747,82.665,120.8]
[1647006706217,6.0,82.766,82.68,14.42]
[1647006706617,6.0,82.766,82.681,9.04447957]
[1647006706817,6.0,82.766,82.682,46.37431354]
[1647006707018,6.0,82.766,82.683,6.0]
[1647006707218,6.0,82.766,82.683,9.04447957]
[1647006707418,6.0,82.766,82.69,18.1228]
[1647006707620,6.0,82.766,82.691,6.0]
[1647006707821,47.2298,82.767,82.691,9.04447957]
[1647006708017,47.2298,82.767,82.691,16.53447957]
[1647006708221,47.2298,82.767,82.692,3.04447957]
[1647006708419,47.2298,82.767,82.693,6.0]
[1647006708817,47.2298,82.767,82.7,18.1215]
[1647006709021,47.2298,82.767,82.702,55.61722974]
[1647006709217,47.2298,82.767,82.703,6.0]
[1647006710021,23.9618,82.789,82.704,3.04447957]
[1647006710221,23.9618,82.789,82.705,6.0]
[1647006710422,23.9618,82.789,82.705,33.32824186]
[1647006710623,23.9618,82.789,82.706,3.04447957]
[1647006710920,23.9618,82.789,82.71,14.42]
[1647006711419,23.9618,82.789,82.706,3.04447957]
[1647006711420,6.0,82.788,82.706,3.04447957]
[1647006711822,6.0,82.788,82.707,6.0]
[1647006712422,6.0,82.788,82.71,14.42]
[1647006712624,6.0,82.788,82.711,6.0]
[1647006713824,6.0,82.788,82.712,3.04447957]
[1647006714025,6.0,82.788,82.713,6.0]
[1647006714624,3.04447957,82.787,82.703,6.0]
[1647006714824,55.138,82.786,82.703,6.0]
[1647006715126,193.24,82.782,82.703,6.0]
[1647006715327,6.0,82.781,82.703,6.0]
[1647006715526,193.24,82.78,82.673,17.818]
[1647006715727,6.0,82.779,82.673,17.818]
[1647006716127,18.1293,82.77,82.673,17.818]
[1647006716330,30.2419,82.769,82.673,17.818]
[1647006716528,30.2419,82.769,82.674,63.2429851]
[1647006716930,24.2419,82.769,82.675,6.0]
[1647006717430,24.2419,82.769,82.676,27.32824186]
[1647006717630,24.2419,82.769,82.68,14.42]
[1647006717831,193.24,82.767,82.68,14.42]
[1647006718029,72.44,82.767,82.681,6.0]
[1647006718230,120.8,82.766,82.681,6.0]
[1647006718429,6.0,82.765,82.681,6.0]
[1647006718628,6.0,82.765,82.675,6.0]
[1647006718829,6.0,82.766,82.675,6.0]
[1647006719031,6.0,82.767,82.68,18.1279]
[1647006719332,6.0,82.767,82.681,6.0]
[1647006719529,24.2419,82.769,82.681,6.0]
[1647006719530,6.0,82.768,82.681,6.0]
[1647006719731,24.6716,82.829,82.681,6.0]
[1647006719732,24.6716,82.829,82.691,120.8]
[1647006719931,24.9904,82.828,82.695,126.56453261]
[1647006720131,24.9904,82.828,82.696,0.25]
[1647006720330,193.24,82.827,82.711,120.8]
[1647006720530,193.24,82.827,82.712,69.71501682]
[1647006720730,193.24,82.827,82.712,72.75949639]
[1647006720932,193.24,82.827,82.713,123.84447957]
[1647006721129,6.0,82.785,82.713,123.84447957]
[1647006721330,6.0,82.785,82.715,120.8]
[1647006721532,6.0,82.785,82.72,14.42]
[1647006721934,6.0,82.785,82.721,9.04447957]
[1647006722330,6.0,82.785,82.722,3.04447957]
[1647006722532,6.0,82.785,82.723,6.0]
[1647006722931,6.0,82.785,82.725,48.71780558]
[1647006723131,6.0,82.785,82.726,6.0]
[1647006723333,72.44,82.827,82.726,9.04447957]
[1647006723536,72.44,82.827,82.727,26.62297908]
[1647006723735,120.8,82.826,82.728,6.0]
[1647006723938,120.8,82.826,82.728,9.04447957]
[1647006724136,72.44,82.827,82.729,3.04447957]
[1647006724336,29.0181,82.826,82.73,6.0]
[1647006724743,29.0181,82.826,82.731,3.04447957]
[1647006724944,29.0181,82.826,82.732,6.0]
[1647006725345,29.0181,82.826,82.733,3.04447957]
[1647006725546,120.8,82.825,82.734,6.0]
[1647006725745,29.0181,82.826,82.734,6.0]
[1647006725746,6.0,82.824,82.734,6.0]
[1647006725946,18.1171,82.82,82.735,3.04447957]
[1647006726147,6.0,82.819,82.736,6.0]
[1647006726546,6.0,82.819,82.738,50.47927492]
[1647006726748,6.0,82.819,82.739,6.0]
[1647006726949,6.0,82.819,82.739,9.04447957]
[1647006727150,6.0,82.819,82.74,3.04447957]
[1647006727347,6.0,82.819,82.741,6.0]
[1647006727749,6.0,82.819,82.741,9.04447957]
[1647006728347,18.1193,82.81,82.741,6.0]
[1647006728547,6.0,82.809,82.739,6.0]
[1647006729047,6.0,82.824,82.739,6.0]
[1647006729450,6.0,82.824,82.74,3.04447957]
[1647006729664,6.0,82.824,82.741,6.0]
[1647006730062,72.44,82.814,82.742,3.04447957]
[1647006730261,90.5606,82.81,82.738,50.47927492]
[1647006730463,6.0,82.809,82.738,50.47927492]
[1647006731665,3.24301735,82.923,82.753,120.8]
[1647006731863,3.24301735,82.923,82.852,6.30466002]
[1647006731864,7.0,82.906,82.852,6.30466002]
[1647006732566,72.44,82.938,82.852,6.30466002]
[1647006732770,72.44,82.918,82.852,6.30466002]
[1647006732966,193.24,82.917,82.852,6.30466002]
[1647006735268,193.24,82.889,82.852,6.30466002]
[1647006736968,192.74,82.889,82.852,6.30466002]
[1647006737168,18.1058,82.88,82.852,6.30466002]
[1647006738172,18.1016,82.89,82.82,18.102]
[1647006738571,120.8,82.888,82.811,3.04447957]
[1647006738772,72.44,82.873,82.794,33.93467796]
[1647006738971,72.44,82.869,82.795,6.0]
[1647006739175,18.1113,82.86,82.795,6.0]
[1647006739374,18.1113,82.86,82.795,3.04447957]
[1647006740577,18.1113,82.86,82.795,36.97915753]
[1647006740977,18.1113,82.86,82.795,33.93467796]
[1647006741177,18.1113,82.86,82.8,18.1061]
[1647006741578,72.44,82.869,82.8,18.1061]
[1647006742686,72.44,82.88,82.8,18.1061]
[1647006742879,71.94,82.88,82.8,18.1061]
[1647006743079,192.74,82.867,82.8,33.93467796]
[1647006743279,18.106,82.87,82.8,33.93467796]
[1647006743880,22.7773,82.881,82.801,3.04447957]
[1647006744179,22.7773,82.881,82.82,18.0987]
[1647006744783,22.7773,82.881,82.817,56.32501233]
[1647006744981,22.7773,82.881,82.802,33.93467796]
[1647006745182,18.1035,82.88,82.803,6.0]
[1647006745380,18.1035,82.88,82.803,9.04447957]
[1647006745582,193.24,82.879,82.803,3.04447957]
[1647006745983,193.24,82.869,82.803,3.04447957]
[1647006746186,193.24,82.869,82.774,3.04447957]
[1647006746387,193.24,82.869,82.772,33.93467796]
[1647006746388,193.24,82.867,82.772,33.93467796]
[1647006746684,47.4286,82.868,82.775,33.93467796]
[1647006746685,193.24,82.859,82.775,33.93467796]
[1647006747085,193.24,82.859,82.773,3.04447957]
[1647006747787,193.24,82.849,82.773,3.04447957]
[1647006748785,193.24,82.849,82.774,33.93467796]
[1647006748985,60.377,82.86,82.774,33.93467796]
[1647006749286,47.4286,82.868,82.774,33.93467796]
[1647006750188,18.11,82.85,82.78,18.11]
[1647006750492,120.8,82.846,82.773,3.04447957]
[1647006751288,120.8,82.836,82.773,3.04447957]
[1647006751487,120.8,82.836,82.773,36.97915753]
[1647006751688,72.44,82.837,82.773,36.97915753]
[1647006752488,72.44,82.839,82.773,36.97915753]
[1647006752689,18.1137,82.84,82.773,36.97915753]
[1647006752890,72.44,82.867,82.775,47.6386687]
[1647006753094,72.44,82.867,82.776,6.0]
[1647006753291,72.44,82.867,82.776,72.60474392]
[1647006753492,120.8,82.866,82.78,14.42]
[1647006753892,120.8,82.866,82.781,36.97915753]
[1647006754091,18.1075,82.86,82.79,18.1078]
[1647006754292,18.1075,82.86,82.791,58.9755024]
[1647006754492,47.4286,82.868,82.791,92.91018036]
[1647006754692,47.4286,82.868,82.792,6.0]
[1647006754892,47.4286,82.868,82.792,72.60474392]
[1647006755092,47.4286,82.868,82.793,33.93467796]
[1647006755294,120.8,82.867,82.8,18.1059]
[1647006755493,47.4286,82.868,82.801,6.0]
[1647006755696,47.4286,82.868,82.793,33.93467796]
[1647006756321,193.24,82.867,82.793,33.93467796]
[1647006757120,18.108,82.86,82.793,33.93467796]
[1647006757320,72.44,82.867,82.793,33.93467796]
[1647006758520,120.8,82.866,82.793,33.93467796]
[1647006759221,18.107,82.86,82.793,33.93467796]
[1647006759824,65.547,82.867,82.793,33.93467796]
[1647006760022,65.547,82.867,82.794,3.04447957]
[1647006760625,120.8,82.866,82.794,3.04447957]
[1647006761224,18.107,82.86,82.794,3.04447957]
[1647006761828,65.547,82.859,82.794,3.04447957]
[1647006762026,120.8,82.856,82.794,3.04447957]
[1647006762227,18.1101,82.85,82.794,3.04447957]
[1647006762825,120.8,82.846,82.784,3.04447957]
[1647006763225,120.8,82.846,82.77,3.04447957]
[1647006763432,120.8,82.844,82.77,3.04447957]
[1647006764227,18.1143,82.83,82.77,21.15827957]
[1647006764927,18.1143,82.83,82.77,18.1138]
[1647006765632,120.8,82.826,82.76,18.1159]
[1647006765830,18.1177,82.81,82.76,18.1159]
[1647006766628,18.1177,82.81,82.751,31.24801129]
[1647006767329,18.1177,82.81,82.752,29.62558639]
[1647006767730,18.1177,82.81,82.753,31.24801129]
[1647006768732,72.44,82.801,82.74,31.24801129]
[1647006768931,22.7772,82.815,82.74,31.24801129]
[1647006768932,120.8,82.786,82.74,31.24801129]
[1647006769131,120.8,82.786,82.689,24.3864]
[1647006769329,72.44,82.787,82.689,24.3864]
[1647006769330,120.8,82.784,82.689,18.2456]
[1647006769532,120.8,82.784,82.69,14.42]
[1647006769733,120.8,82.784,82.69,42.42893424]
[1647006770133,120.8,82.784,82.691,37.05341381]
[1647006770333,120.8,82.776,82.691,31.05341381]
[1647006770535,120.8,82.766,82.691,3.04447957]
[1647006770734,72.44,82.767,82.678,28.00893424]
[1647006770735,120.8,82.764,82.679,3.04447957]
[1647006771633,120.8,82.764,82.69,18.1317]
[1647006771634,18.1314,82.75,82.69,18.1317]
[1647006772034,120.8,82.764,82.69,18.1317]
[1647006772235,120.8,82.764,82.691,3.04447957]
[1647006772637,18.1304,82.75,82.691,3.04447957]
[1647006773136,23.1288,82.765,82.701,60.76470231]
[1647006774635,23.1288,82.765,82.71,18.124]
[1647006775836,60.42,82.79,82.71,18.124]
[1647006775837,14.42,82.84,82.711,28.62674714]
[1647006776038,23.5271,82.813,82.721,57.3031885]
[1647006776437,23.5271,82.813,82.722,3.04447957]
[1647006776637,120.8,82.8,82.722,3.04447957]
[1647006776836,120.8,82.796,82.722,3.04447957]
[1647006777540,120.8,82.794,82.722,3.04447957]
[1647006777737,18.1238,82.78,82.722,3.04447957]
[1647006778539,60.4212,82.79,82.722,3.04447957]
[1647006778838,60.4212,82.79,82.72,18.1253]
[1647006779144,72.44,82.779,82.68,60.4256]
[1647006779339,120.8,82.776,82.681,6.0]
[1647006779541,120.8,82.766,82.684,3.04447957]
[1647006779744,120.8,82.764,82.684,3.04447957]
[1647006779940,120.8,82.764,82.68,14.42]
[1647006780140,18.1337,82.74,82.68,32.5525]
[1647006780739,18.1337,82.74,82.668,58.73068939]
[1647006780740,193.24,82.739,82.659,25.58226757]
[1647006781142,18.1346,82.73,82.65,18.1384]
[1647006781339,23.1541,82.765,82.65,18.1384]
[1647006781340,22.5545,82.756,82.651,120.8]
[1647006781539,22.5545,82.756,82.66,145.65891972]
[1647006781744,22.5545,82.756,82.661,63.84947608]
[1647006781940,22.5545,82.756,82.661,115.91132995]
[1647006782176,120.8,82.755,82.662,27.08625297]
[1647006782341,18.1351,82.73,82.67,18.1351]
[1647006782542,18.1351,82.73,82.662,24.9756009]
[1647006782941,18.1351,82.73,82.653,3.04447957]
[1647006783142,45.7153,82.729,82.653,3.04447957]
[1647006783343,24.6587,82.787,82.66,18.1383]
[1647006783544,46.3295,82.769,82.67,135.22]
[1647006783745,46.3295,82.769,82.671,58.43018034]
[1647006783943,46.3295,82.769,82.671,86.45026081]
[1647006784145,46.3295,82.769,82.672,6.0]
[1647006784447,193.24,82.768,82.672,9.04447957]
[1647006785544,18.1288,82.76,82.68,18.1334]
[1647006785944,46.3295,82.769,82.681,3.04447957]
[1647006787049,46.3295,82.769,82.691,58.93951823]
[1647006788045,46.3295,82.769,82.7,18.1287]
[1647006790149,18.1287,82.76,82.7,18.1287]
[1647006790550,46.3295,82.769,82.7,18.1287]
[1647006792151,18.1286,82.76,82.7,18.1287]
[1647006793355,3.24301735,82.824,82.701,3.04447957]
[1647006793356,72.44,82.801,82.701,3.04447957]
[1647006793557,47.0264,82.793,82.702,6.0]
[1647006793754,47.0264,82.793,82.711,65.1386919]
[1647006794057,22.9519,82.819,82.721,120.8]
[1647006794254,47.0264,82.839,82.722,4.01658491]
[1647006794456,47.0264,82.839,82.725,120.8]
[1647006794652,47.0264,82.839,82.75,18.1072]
[1647006794858,22.9519,82.854,82.761,50.44907329]
[1647006795056,22.9519,82.854,82.77,135.22]
[1647006795255,22.9519,82.854,82.77,195.5656]
[1647006795452,22.9519,82.854,82.771,31.1795863]
[1647006795653,22.9519,82.854,82.771,34.22406587]
[1647006795953,22.9519,82.854,82.772,3.04447957]
[1647006796153,22.9519,82.854,82.774,56.91114797]
[1647006796353,47.0264,82.875,82.78,18.1037]
[1647006796752,47.0264,82.875,82.781,3.04447957]
[1647006796955,47.0264,82.875,82.782,6.0]
[1647006797180,18.1048,82.87,82.782,6.0]
[1647006797384,47.0264,82.875,82.8,18.105]
[1647006797786,47.0264,82.875,82.801,46.33887233]
[1647006797985,47.0264,82.875,82.802,6.0]
[1647006798183,18.1007,82.89,82.802,9.04447957]
[1647006798584,18.1007,82.89,82.81,18.1019]
[1647006798782,18.1007,82.89,82.811,6.0]
[1647006799386,18.1007,82.89,82.804,6.0]
[1647006800187,18.1007,82.89,82.82,18.1007]
[1647006800988,18.1007,82.89,82.804,6.0]
[1647006801588,18.1007,82.89,82.795,6.0]
[1647006801787,24.8763,82.889,82.796,54.43392572]
[1647006801986,18.1042,82.88,82.797,6.0]
[1647006802186,120.8,82.876,82.797,6.0]
[1647006802590,72.44,82.877,82.793,6.0]
[1647006802785,120.8,82.876,82.793,6.0]
[1647006802987,72.44,82.877,82.793,6.0]
[1647006803190,18.1074,82.86,82.793,6.0]
[1647006803388,72.44,82.877,82.793,6.0]
[1647006803791,120.8,82.876,82.792,3.04447957]
[1647006803989,120.8,82.862,82.792,3.04447957]
[1647006804190,18.1117,82.85,82.776,3.04447957]
[1647006804391,18.1117,82.85,82.77,32.53]
[1647006804592,18.1117,82.85,82.77,18.11]
[1647006805590,18.1076,82.86,82.77,32.53]
[1647006805991,120.8,82.858,82.77,32.53]
[1647006806193,120.8,82.856,82.77,32.53]
[1647006806390,120.8,82.85,82.77,18.11]
[1647006806590,18.1125,82.84,82.77,18.11]
[1647006807394,72.44,82.847,82.77,21.15447957]
[1647006807793,72.44,82.847,82.77,18.11]
[1647006808390,120.8,82.846,82.77,18.11]
[1647006808992,72.44,82.859,82.77,18.11]
[1647006809194,18.1119,82.84,82.77,18.11]
[1647006812294,193.24,82.839,82.75,17.46447957]
[1647006812493,23.0519,82.84,82.75,17.46447957]
[1647006812494,193.24,82.837,82.75,17.46447957]
[1647006812698,18.1179,82.82,82.75,3.04447957]
[1647006813296,18.1179,82.82,82.76,18.1143]
[1647006813497,72.44,82.837,82.76,18.1143]
[1647006813696,47.117,82.838,82.76,18.1143]
[1647006813897,47.117,82.838,82.76,138.9143]
[1647006814097,47.117,82.838,82.761,48.60633344]
[1647006814299,47.117,82.838,82.78,18.1041]
[1647006814598,47.117,82.838,82.781,62.70475636]
[1647006815205,47.117,82.838,82.782,3.04447957]
[1647006815502,47.117,82.838,82.781,62.70475636]
[1647006817205,47.117,82.838,82.79,18.1083]
[1647006817506,47.117,82.838,82.772,3.04447957]
[1647006818406,47.117,82.838,82.77,18.1114]
[1647006819206,18.1135,82.83,82.77,18.1114]
[1647006819408,18.1135,82.83,82.77,78.9139839]
[1647006819610,47.117,82.838,82.77,78.9139839]
[1647006820410,47.117,82.838,82.79,18.1056]
[1647006821310,18.1021,82.88,82.791,3.04447957]
[1647006821515,45.9435,82.879,82.81,18.1039]
[1647006821712,45.9435,82.879,82.797,53.7792477]
[1647006822114,193.24,82.878,82.791,3.04447957]
[1647006822713,193.24,82.869,82.791,3.04447957]
[1647006823434,72.44,82.867,82.791,50.15621844]
[1647006823632,72.44,82.867,82.791,3.04447957]
[1647006824434,23.9535,82.868,82.791,3.04447957]
[1647006824834,18.1068,82.86,82.791,3.04447957]
[1647006828339,23.9535,82.868,82.791,3.04447957]
[1647006829140,23.9535,82.868,82.8,18.1066]
[1647006829540,18.1059,82.86,82.8,18.1066]
[1647006829742,18.1059,82.86,82.791,3.04447957]
[1647006830144,18.1059,82.86,82.77,63.40187957]
[1647006830344,3.04447957,82.859,82.78,18.1105]
[1647006830742,193.24,82.867,82.78,18.1105]
[1647006830947,60.3699,82.86,82.78,18.1105]
[1647006831145,72.44,82.867,82.781,56.21516357]
[1647006831747,23.9535,82.868,82.781,56.21516357]
[1647006832147,18.1061,82.86,82.8,18.1061]
[1647006832347,18.1061,82.86,82.801,51.27441351]
[1647006833648,23.9535,82.868,82.81,18.1053]
[1647006835552,23.9535,82.868,82.82,18.1003]
[1647006835849,23.9535,82.868,82.821,58.42635364]
[1647006836050,3.24301735,82.913,82.821,58.42635364]
[1647006836249,45.8511,82.918,82.821,58.42635364]
[1647006836449,45.8511,82.918,82.822,6.0]
[1647006836650,45.8511,82.918,82.822,126.8]
[1647006837050,45.8511,82.918,82.83,18.0943]
[1647006837454,45.8511,82.918,82.831,6.0]
[1647006837455,193.24,82.917,82.831,6.0]
[1647006837654,193.24,82.917,82.821,58.42635364]
[1647006837953,18.0993,82.89,82.821,58.42635364]
[1647006838255,45.8511,82.889,82.821,58.42635364]
[1647006839253,45.8511,82.889,82.83,18.1006]
[1647006839654,45.8511,82.889,82.803,3.04447957]
[1647006839856,72.44,82.888,82.804,6.0]
[1647006840258,193.24,82.887,82.804,6.0]
[1647006840456,193.24,82.887,82.79,14.42]
[1647006840658,45.8511,82.889,82.811,57.42700257]
[1647006841255,45.8511,82.889,82.812,6.0]
[1647006841658,45.8511,82.889,82.831,62.28938325]
[1647006842856,3.24301735,82.934,82.84,18.0966]
[1647006843256,72.44,82.937,82.84,18.0966]
[1647006843655,120.8,82.935,82.84,18.0966]
[1647006843857,60.3234,82.92,82.84,18.0966]
[1647006844058,3.24301735,82.938,82.841,129.84447957]
[1647006844261,47.1062,82.946,82.852,61.16975266]
[1647006844459,47.1062,82.946,82.86,14.42]
[1647006844659,47.1062,82.946,82.861,6.0]
[1647006844859,47.1062,82.946,82.861,29.74988512]
[1647006845059,47.1062,82.946,82.861,64.56221707]
[1647006845260,47.1062,82.946,82.862,34.81233195]
[1647006845459,47.1062,82.946,82.863,6.0]
[1647006845661,47.1062,82.946,82.863,40.81233195]
[1647006845859,47.1062,82.946,82.871,53.77944718]
[1647006846261,47.1062,82.946,82.872,3.04447957]
[1647006846860,47.1062,82.946,82.872,33.42566528]
[1647006846861,0.00344537,82.899,82.872,33.42566528]
[1647006847260,0.00344537,82.899,82.873,9.04447957]
[1647006847862,0.00344537,82.899,82.873,3.04447957]
[1647006849163,0.00344537,82.899,82.88,18.0888]
[1647006849562,0.00344537,82.899,82.873,3.04447957]
[1647006849763,0.00344537,82.899,82.841,126.27554614]
[1647006849764,0.00344537,82.899,82.859,3.04447957]
[1647006849962,0.00344537,82.899,82.86,6.0]
[1647006850165,0.00344537,82.899,82.87,18.0907]
[1647006850663,0.00344537,82.899,82.871,33.42566528]
[1647006851064,0.00344537,82.899,82.872,39.42566528]
[1647006851268,0.00344537,82.899,82.881,120.8]
[1647006851463,0.00344537,82.899,82.882,6.0]
[1647006851664,0.00344537,82.899,82.883,120.8]
[1647006851864,0.00344537,82.899,82.884,6.0]
[1647006852166,0.00344537,82.899,82.885,120.8]
[1647006852366,46.9025,82.989,82.902,4.15875758]
[1647006852566,46.9025,82.989,82.911,120.8]
[1647006853066,46.9025,82.989,82.912,29.74988512]
[1647006853267,46.9025,82.989,82.913,49.65528739]
[1647006853466,46.9025,82.989,82.914,6.0]
[1647006853869,46.9025,82.989,82.915,120.8]
[1647006854068,46.9025,82.989,82.916,6.0]
[1647006854467,46.9025,82.989,82.916,9.04447957]
[1647006854667,46.9025,82.989,82.917,3.04447957]
[1647006854867,46.9025,82.989,82.918,6.0]
[1647006855267,46.9025,82.989,82.919,3.04447957]
[1647006855467,46.9025,82.989,82.92,6.0]
[1647006855971,46.9025,82.989,82.921,3.04447957]
[1647006856172,46.9025,82.989,82.922,6.0]
[1647006857571,18.0808,82.98,82.922,6.0]
[1647006857772,46.9025,82.989,82.922,6.0]
[1647006858171,46.9025,82.989,82.914,6.0]
[1647006858372,72.44,82.987,82.9,18.084]
[1647006858573,72.44,82.987,82.891,30.38118571]
[1647006858772,72.44,82.987,82.899,6.0]
[1647006859174,120.8,82.986,82.899,6.0]
[1647006859374,60.2869,82.98,82.9,18.0845]
[1647006859578,46.9025,82.989,82.9,18.0845]
[1647006859777,46.9025,82.989,82.901,30.38118571]
[1647006859977,46.9025,82.989,82.901,54.13107083]
[1647006860178,46.9025,82.989,82.901,57.1755504]
[1647006860477,46.9025,82.989,82.909,52.97193852]
[1647006860677,18.085,82.96,82.909,52.97193852]
[1647006861077,18.085,82.96,82.892,6.0]
[1647006861276,48.3182,82.959,82.891,6.0]
[1647006861679,48.3182,82.959,82.891,9.04447957]
[1647006862076,48.3182,82.959,82.892,57.29614357]
[1647006862280,48.3182,82.959,82.893,6.0]
[1647006862477,48.3182,82.959,82.9,18.0842]
[1647006863577,48.3182,82.959,82.901,3.04447957]
[1647006864378,48.3182,82.959,82.902,6.0]
[1647006864581,18.0888,82.94,82.893,6.0]
[1647006864799,48.3182,82.959,82.88,3.04447957]
[1647006865203,48.3182,82.959,82.881,63.15814916]
[1647006865499,18.0909,82.93,82.87,21.13497957]
[1647006865701,48.3182,82.959,82.87,3.04447957]
[1647006865702,193.24,82.947,82.87,3.04447957]
[1647006865902,193.24,82.947,82.85,3.04447957]
[1647006865903,120.8,82.945,82.85,3.04447957]
[1647006866401,60.3195,82.93,82.852,58.71962242]
[1647006866605,18.0931,82.92,82.853,6.0]
[1647006866801,47.6679,82.919,82.85,33.42566528]
[1647006867002,47.6679,82.919,82.85,3.04447957]
[1647006867205,47.6679,82.919,82.838,3.04447957]
[1647006867602,47.6679,82.919,82.84,18.0974]
[1647006867803,47.6679,82.919,82.841,51.91282393]
[1647006868002,47.6679,82.919,82.841,85.33848921]
[1647006868204,47.6679,82.919,82.842,33.42566528]
[1647006868704,47.6679,82.919,82.843,3.04447957]
[1647006869509,47.6679,82.919,82.843,33.42566528]
[1647006869907,47.6679,82.919,82.844,3.04447957]
[1647006870110,18.0952,82.91,82.85,18.0942]
[1647006871308,18.0952,82.91,82.85,48.47538571]
[1647006871510,18.0952,82.91,82.85,51.51986528]
[1647006872508,18.0952,82.91,82.85,21.13867957]
[1647006873010,18.0952,82.91,82.837,3.04447957]
[1647006873209,18.1031,82.89,82.837,3.04447957]
[1647006874012,18.1031,82.89,82.82,18.101]
[1647006874216,120.8,82.896,82.82,18.101]
[1647006874217,46.5855,82.889,82.82,18.101]
[1647006875016,46.5855,82.889,82.82,48.48218571]
[1647006875218,46.5855,82.889,82.83,18.0997]
[1647006875418,46.5855,82.889,82.831,54.69039588]
[1647006875619,46.5855,82.889,82.831,85.07158159]
[1647006875820,46.5855,82.889,82.832,3.04447957]
[1647006878723,18.1022,82.88,82.82,18.1022]
[1647006878923,18.1022,82.88,82.822,3.04447957]
[1647006879123,18.1022,82.88,82.823,6.0]
[1647006879726,18.1022,82.88,82.822,3.04447957]
[1647006880325,46.5855,82.889,82.83,18.1002]
[1647006880724,46.5855,82.889,82.831,50.72370078]
[1647006880924,46.5855,82.889,82.831,81.10488649]
[1647006881124,46.5855,82.889,82.831,104.85477161]
[1647006881324,46.5855,82.889,82.832,57.1755504]